bitfinex/quotes_ETHUSD_20240821
["timestamp","ask_amount","ask_price","bid_price","bid_amount"]
[1724238906692,1.677,2590.7,2590.3,0.53969318]
[1724238908451,2.2743,2590.8,2590.3,0.53969318]
[1724238908978,2.4946,2591.2,2590.4,2.3401]
[1724238909131,2.4946,2591.2,2590.4,2.63596133]
[1724238910838,2.4946,2591.2,2590.4,0.29586133]
[1724238911038,2.324,2591.0,2590.4,0.29586133]
[1724238911243,2.324,2591.0,2590.0,0.7]
[1724238911744,2.324,2591.0,2590.1,0.29602596]
[1724238913338,2.2807,2590.7,2590.1,0.29602596]
[1724238913684,2.2807,2590.4,2589.6,2.2774]
[1724238913885,0.63037,2590.3,2590.2,0.296097]
[1724238914092,0.63037,2590.3,2589.6,2.2774]
[1724238914387,2.2807,2590.4,2589.7,0.29530673]
[1724238918772,0.60544385,2590.3,2589.7,0.29530673]
[1724238919294,6.4366,2590.2,2589.4,2.3338]
[1724238919597,6.4366,2590.2,2589.1,2.2938]
[1724238919898,0.70420439,2590.1,2589.2,0.2954862]
[1724238924296,0.70420439,2590.1,2589.3,2.4038]
[1724238924671,0.70420439,2590.1,2589.4,0.29465724]
[1724238929565,2.4155,2590.0,2589.4,0.29465724]
[1724238929917,2.4155,2589.8,2589.4,0.29465724]
[1724238930269,2.4155,2589.8,2589.1,2.2602]
[1724238930669,2.4155,2589.8,2589.2,0.28556618]
[1724238933271,2.3646,2590.0,2589.2,0.28556618]
[1724238933461,2.3646,2590.0,2589.3,2.4905]
[1724238933663,9.7084678,2590.2,2589.5,2.4905]
[1724238934166,9.7084678,2590.2,2589.6,0.34173517]
[1724238934367,9.7084678,2590.2,2589.5,2.4905]
[1724238934568,1.677,2590.0,2589.6,0.34173517]
[1724238934880,4.0017,2589.8,2589.6,0.34173517]
[1724238935295,1.677,2589.8,2589.1,2.4905]
[1724238935498,1.677,2589.8,2589.7,0.33987164]
[1724238936020,1.677,2589.8,2589.1,2.4905]
[1724238936325,1.677,2589.8,2589.7,0.33987164]
[1724238936474,0.40017,2589.8,2589.1,2.4905]
[1724238936674,2.3247,2590.0,2589.7,0.33987164]
[1724238936919,2.3247,2590.0,2589.1,2.4905]
[1724238937073,2.3247,2590.0,2589.8,0.33983356]
[1724238937274,2.3247,2590.0,2589.1,2.4905]
[1724238937821,2.3247,2590.0,2589.2,0.34006204]
[1724238938021,2.3247,2590.0,2589.2,0.62311824]
[1724238940787,6.3507,2590.0,2589.2,0.34006204]
[1724238940989,6.3507,2590.0,2588.8,2.3527]
[1724238940990,2.2541,2589.9,2588.8,2.3527]
[1724238941205,2.2541,2589.9,2589.3,0.34013094]
[1724238941427,2.2541,2589.7,2588.8,2.3527]
[1724238941914,2.2541,2589.7,2588.9,0.34028331]
[1724238947307,6.2801,2589.7,2588.9,0.34028331]
[1724238947498,2.4146,2589.5,2588.9,0.34028331]
[1724238947827,2.4146,2589.5,2588.6,9.8324]
[1724238947978,3.35866,2589.5,2589.0,0.3179559]
[1724238948181,2.4011,2589.4,2588.6,9.8324]
[1724238948388,2.4011,2589.4,2589.1,0.31791781]
[1724238948617,2.4011,2589.4,2588.6,9.8324]
[1724238948618,0.334516,2589.3,2588.6,9.8324]
[1724238948861,2.4011,2589.4,2589.2,0.31787972]
[1724238949125,2.4011,2589.4,2588.6,9.8324]
[1724238949320,2.4011,2589.4,2589.3,0.31784163]
[1724238949525,2.4011,2589.4,2588.6,9.8324]
[1724238949907,2.4011,2589.4,2588.7,0.3180702]
[1724238950125,2.4011,2589.4,2588.7,1.33311722]
[1724238951583,2.4825,2589.8,2588.8,2.2897]
[1724238951784,2.4825,2589.8,2588.8,2.60773209]
[1724238953483,2.3498,2589.7,2588.8,2.60773209]
[1724238953738,5.98738,2589.7,2588.9,0.36227791]
[1724238953959,5.98738,2589.7,2588.9,0.6802719]
[1724238954126,2.3498,2589.6,2588.9,0.31799399]
[1724238954463,5.3498,2589.6,2588.9,0.31799399]
[1724238955524,3.0,2589.6,2588.9,0.31799399]
[1724238955728,2.379,2589.5,2588.9,0.31799399]
[1724238955929,2.379,2589.5,2588.7,1.01504702]
[1724238955930,2.980658,2589.5,2588.7,1.01504702]
[1724238956344,2.980658,2589.5,2588.8,0.31803209]
[1724238956753,2.3817,2589.4,2588.8,0.31803209]
[1724238956920,2.3817,2589.4,2588.6,9.6976]
[1724238957120,5.3817,2589.4,2588.6,2.2776]
[1724238957461,5.3817,2589.4,2588.7,0.3180702]
[1724238957462,2.398,2589.2,2588.7,0.3180702]
[1724238958736,2.3688,2588.8,2587.8,5.17983705]
[1724238959068,2.3688,2588.7,2587.8,2.3579]
[1724238959244,2.90568,2588.7,2587.8,2.9458837]
[1724238959556,3.0,2588.6,2587.8,2.9458837]
[1724238959768,2.3688,2588.7,2587.8,2.9458837]
[1724238960059,2.4263,2589.0,2588.0,2.3231]
[1724238963429,5.4263,2589.0,2588.0,2.3231]
[1724238966668,5.4263,2589.0,2588.1,0.31790236]
[1724238967178,5.4263,2589.0,2588.2,2.2614]
[1724238967334,5.2673,2589.3,2588.2,2.2614]
[1724238967539,5.6699,2589.3,2588.3,0.57579184]
[1724238968270,3.4026,2589.3,2588.4,2.3636]
[1724238968436,3.0,2589.3,2588.4,2.3636]
[1724238968618,2.427,2589.5,2588.5,0.31775699]
[1724238969336,2.427,2589.5,2588.6,2.3652]
[1724238969746,3.0,2589.6,2588.7,0.31812765]
[1724238969930,3.0,2589.6,2588.8,2.3652]
[1724238970435,3.0,2589.6,2588.9,0.31795212]
[1724238974546,4.026,2589.4,2588.9,0.31795212]
[1724238974847,3.0,2589.3,2588.6,2.3332]
[1724238975041,0.7026,2589.2,2588.7,0.31776588]
[1724238975441,0.7026,2589.2,2588.6,2.3332]
[1724238975641,0.7026,2589.2,2588.7,0.31776588]
[1724238975988,0.7026,2589.2,2588.6,2.3332]
[1724238976188,0.37026,2589.1,2588.7,0.31809927]
[1724238976544,0.37026,2589.1,2588.6,2.3332]
[1724238976874,0.37026,2589.1,2588.7,0.31809927]
[1724238977389,0.37026,2589.1,2588.6,2.3332]
[1724238977558,0.7026,2589.2,2588.6,2.3332]
[1724238977744,3.0,2589.4,2588.6,2.3332]
[1724238977944,2.2837,2589.5,2588.6,2.3332]
[1724238980335,4.026,2589.4,2588.6,2.3332]
[1724238980590,3.0,2589.3,2588.7,0.31814184]
[1724238980889,0.7026,2589.2,2588.6,2.3332]
[1724238981247,0.7026,2589.2,2588.7,0.31812765]
[1724238981445,0.7026,2589.2,2588.6,2.3332]
[1724238981695,0.7026,2589.2,2588.7,0.31812765]
[1724238981992,0.37026,2589.1,2588.7,0.31812765]
[1724238982202,2.67636,2589.1,2588.4,2.293]
[1724238982405,3.0,2589.0,2588.4,2.293]
[1724238982542,3.0,2589.0,2588.5,0.31820386]
[1724238982973,3.0,2589.0,2588.5,0.31302199]
[1724238983177,0.567636,2588.9,2588.5,0.31302199]
[1724238984486,0.37026,2589.1,2588.5,0.31302199]
[1724238988395,2.4105,2589.0,2588.5,0.31302199]
[1724238988608,5.4105,2589.0,2588.5,0.31302199]
[1724238988749,5.4105,2589.0,2588.1,2.365]
[1724238989150,5.4105,2589.0,2588.2,0.31814548]
[1724238989463,0.578076,2588.9,2588.2,0.31814548]
[1724238989643,3.578076,2588.9,2588.2,0.31814548]
[1724238990044,3.578076,2588.9,2588.1,2.365]
[1724238990295,3.578076,2588.9,2588.2,0.31814548]
[1724238990649,3.578076,2588.9,2588.1,2.365]
[1724238990848,0.5988576,2588.8,2588.2,0.31814548]
[1724238991047,3.578076,2588.9,2588.3,2.4856]
[1724238991290,0.578076,2588.9,2588.3,2.4856]
[1724238991675,0.37026,2589.1,2588.3,2.4856]
[1724238992659,0.37026,2589.1,2588.4,0.31779193]
[1724238992909,0.37026,2589.1,2588.3,2.4856]
[1724238993414,0.37026,2589.1,2588.4,0.31779193]
[1724238993709,0.37026,2589.1,2588.3,2.4856]
[1724238994058,0.37026,2589.1,2587.7,2.01559449]
[1724238994059,0.37026,2589.1,2588.4,0.31779193]
[1724238994259,0.37026,2589.1,2588.4,2.4017]
[1724238994458,0.37026,2589.1,2588.5,2.69285381]
[1724238994705,7.3837678,2589.3,2588.5,2.69285381]
[1724238995006,7.3837678,2589.3,2588.5,2.3751]
[1724238995425,7.3837678,2589.3,2588.6,0.31771571]
[1724238996028,3.0,2589.2,2588.6,0.31771571]
[1724238996377,3.0,2589.2,2588.5,2.3751]
[1724238996577,1.03837678,2589.1,2588.5,2.3751]
[1724238997008,3.43947678,2589.1,2588.6,0.31771571]
[1724238997190,3.0,2589.0,2588.6,0.31771571]
[1724238997394,3.0,2589.0,2588.5,2.3751]
[1724238997731,0.64394768,2588.9,2588.5,2.3751]
[1724238998035,1.03837678,2589.1,2588.5,2.3751]
[1724238998339,3.0,2589.2,2588.7,2.3003]
[1724238999644,3.0,2589.2,2588.8,0.3176395]
[1724238999793,3.0,2589.2,2588.7,2.3003]
[1724239000303,4.03837678,2589.2,2588.8,0.3176395]
[1724239000718,4.03837678,2589.2,2588.7,2.3003]
[1724239001245,4.03837678,2589.2,2588.8,0.3176395]
[1724239001403,3.0,2589.2,2588.9,2.2557]
[1724239007057,3.0,2589.5,2588.9,2.2557]
[1724239011927,1.678,2589.2,2588.9,2.2557]
[1724239016128,1.678,2589.4,2588.9,2.2557]
[1724239016337,7.3837678,2589.6,2588.9,2.2557]
[1724239016519,7.3837678,2589.6,2589.1,2.3643]
[1724239016861,2.3008,2590.1,2589.2,0.31716784]
[1724239016862,7.3837678,2589.9,2589.2,0.31716784]
[1724239017028,0.79895426,2589.8,2589.3,2.3643]
[1724239017231,0.79895426,2589.8,2589.4,0.31707747]
[1724239017412,0.79895426,2589.8,2589.3,2.3643]
[1724239017767,1.678,2589.7,2589.3,2.3643]
[1724239018350,3.79895426,2589.8,2589.5,2.3643]
[1724239018815,3.79895426,2589.8,2589.6,0.31671759]
[1724239019011,3.79895426,2589.8,2589.5,2.3643]
[1724239019267,3.79895426,2589.8,2589.6,0.31671759]
[1724239019470,3.79895426,2589.8,2589.5,2.3643]
[1724239019959,3.79895426,2589.8,2589.6,0.31671759]
[1724239020157,1.28607221,2589.7,2589.6,0.31671759]
[1724239020363,1.28607221,2589.7,2589.5,2.3643]
[1724239021363,1.28607221,2589.7,2588.8,2.3078]
[1724239021702,1.28607221,2589.7,2589.0,2.2929]
[1724239022265,6.05775426,2589.8,2589.2,2.2929]
[1724239022266,3.79895426,2589.8,2589.2,2.2929]
[1724239022564,3.79895426,2589.8,2589.3,0.3167751]
[1724239022918,3.79895426,2589.8,2589.2,2.2929]
[1724239023618,7.3837678,2589.9,2589.3,0.31693113]
[1724239023858,7.3837678,2589.9,2589.3,2.4343]
[1724239024040,7.3837678,2589.9,2589.4,0.31685758]
[1724239024244,7.3837678,2589.9,2589.3,2.4343]
[1724239024969,7.3837678,2589.9,2589.4,2.64585758]
[1724239025258,7.3837678,2589.9,2589.4,2.329]
[1724239025618,3.0,2589.8,2589.4,2.329]
[1724239026260,3.0,2589.8,2589.4,2.5619]
[1724239026460,7.3837678,2589.9,2589.5,0.31676985]
[1724239026667,7.3837678,2589.9,2589.4,2.5619]
[1724239027620,15.25,2590.1,2589.4,2.5619]
[1724239027864,3.0,2590.0,2589.5,0.31673439]
[1724239028033,3.0,2590.0,2589.6,2.4062]
[1724239031173,7.3837678,2590.2,2589.6,2.64682]
[1724239033129,7.3837678,2590.2,2589.6,2.4062]
[1724239037711,11.4107678,2590.2,2588.7,2.71451494]
[1724239037859,11.4107678,2590.2,2589.4,2.2716]
[1724239038052,1.66818678,2590.1,2589.4,2.2716]
[1724239038699,4.66818678,2590.1,2589.4,2.2716]
[1724239039009,2.3903,2590.0,2589.4,2.2716]
[1724239039207,5.3903,2590.0,2589.4,2.2716]
[1724239040215,3.0,2590.0,2589.4,2.2716]
[1724239040372,1.84034546,2590.0,2589.4,2.2716]
[1724239040591,6.51734546,2590.0,2589.4,2.2716]
[1724239041981,4.84034546,2590.0,2589.4,2.2716]
[1724239042192,1.84034546,2590.0,2589.4,2.2716]
[1724239043006,1.677,2589.8,2589.4,2.2716]
[1724239043803,2.32873455,2589.8,2589.4,2.2716]
[1724239045189,1.677,2589.8,2589.4,2.2716]
[1724239045388,3.0,2589.9,2589.4,2.2716]
[1724239045588,3.0,2590.1,2589.4,2.2716]
[1724239045788,1.677,2590.0,2589.4,2.2716]
[1724239047434,7.3837678,2590.2,2589.5,2.324]
[1724239047647,7.3837678,2590.2,2589.7,2.324]
[1724239048405,1.677,2590.3,2589.7,2.324]
[1724239048649,2.3085,2590.3,2589.7,2.324]
[1724239048850,2.3085,2590.3,2589.2,2.324]
[1724239049205,2.3085,2590.3,2589.4,2.324]
[1724239049554,0.53085,2590.2,2589.4,2.324]
[1724239049732,1.677,2590.0,2589.4,2.324]
[1724239050335,1.677,2590.0,2589.5,0.31586914]
[1724239052805,3.0,2590.2,2589.6,2.4754]
[1724239053005,3.0,2590.4,2589.7,0.27912691]
[1724239053221,3.0,2590.4,2589.6,2.4754]
[1724239054157,4.677,2590.4,2589.8,2.3854]
[1724239055037,3.0,2590.4,2589.8,2.3854]
[1724239056772,1.677,2590.2,2589.8,2.3854]
[1724239057758,1.677,2590.2,2589.6,2.2543]
[1724239057913,4.167,2589.8,2589.1,2.2543]
[1724239058112,4.167,2589.8,2588.9,2.82124868]
[1724239058113,1.677,2589.5,2589.2,0.31581323]
[1724239058339,1.677,2589.5,2588.8,2.2543]
[1724239058539,1.677,2589.5,2589.3,0.31136763]
[1724239058743,1.677,2589.5,2588.9,0.39313]
[1724239059152,1.677,2589.5,2589.0,0.3114819]
[1724239059368,10.3837678,2590.0,2589.1,2.2723]
[1724239059369,1.677,2589.7,2589.1,2.2723]
[1724239059767,1.677,2589.7,2589.2,0.31140572]
[1724239060283,10.3837678,2590.0,2589.2,0.56977629]
[1724239060284,1.677,2589.9,2589.2,0.56977629]
[1724239060801,1.677,2589.7,2589.2,0.31140572]
[1724239063217,1.677,2589.3,2589.2,0.31140572]
[1724239064559,1.677,2589.3,2589.1,2.2723]
[1724239064807,1.677,2589.3,2589.2,0.31166805]
[1724239065394,1.677,2589.3,2589.1,2.2723]
[1724239065806,1.677,2589.3,2589.2,0.31166805]
[1724239066711,1.677,2589.3,2589.1,2.2723]
[1724239067003,1.677,2589.3,2589.2,0.31166805]
[1724239069095,1.677,2589.5,2589.2,0.31166805]
[1724239069295,1.677,2589.5,2589.1,2.2723]
[1724239069619,1.677,2589.5,2589.2,0.31166805]
[1724239069958,1.677,2589.5,2589.1,2.2723]
[1724239070165,1.677,2589.5,2589.3,0.31162996]
[1724239070408,1.677,2589.5,2589.2,0.31166805]
[1724239070709,1.677,2589.5,2589.1,2.2723]
[1724239070880,1.677,2589.5,2589.2,0.31166805]
[1724239071066,1.677,2589.5,2589.1,2.2723]
[1724239071369,1.677,2589.5,2589.2,0.31166805]
[1724239071783,3.0,2589.8,2589.1,2.2723]
[1724239071784,1.677,2589.3,2589.1,2.2723]
[1724239072311,1.677,2589.3,2589.2,0.31166805]
[1724239073825,1.677,2589.5,2589.2,0.31166805]
[1724239075533,1.677,2589.5,2589.1,2.2723]
[1724239075738,1.677,2589.5,2589.2,0.31172478]
[1724239078621,1.677,2589.3,2589.2,0.31172478]
[1724239079299,1.677,2589.3,2588.6,2.2555]
[1724239079654,3.0,2589.4,2588.7,0.31194363]
[1724239079789,1.677,2589.0,2588.7,0.31194363]
[1724239080989,3.0,2589.4,2588.7,0.31194363]
[1724239080990,1.677,2589.2,2588.7,0.31194363]
[1724239081197,1.677,2589.2,2588.7,0.63868799]
[1724239082249,1.677,2589.2,2588.7,0.31194363]
[1724239089310,1.627,2589.2,2588.7,0.31194363]
[1724239089511,0.60571147,2589.3,2588.8,2.4016]
[1724239089826,3.86222,2589.2,2589.0,2.4016]
[1724239089987,1.677,2589.4,2589.0,2.4016]
[1724239090145,3.86204,2589.3,2589.1,0.31199687]
[1724239090333,11.58657,2589.2,2589.1,0.31199687]
[1724239090540,7.72468,2589.1,2589.0,2.4016]
[1724239091146,11.58702,2589.1,2589.0,2.4016]
[1724239092646,7.72468,2589.1,2589.0,2.64176]
[1724239092955,7.72468,2589.1,2589.0,2.95379496]
[1724239100209,3.86234,2589.1,2589.0,4.63079496]
[1724239100592,3.86182,2589.5,2589.1,0.7]
[1724239100914,3.86182,2589.5,2589.4,4.0181]
[1724239101210,11.2448178,2590.0,2589.5,2.3087]
[1724239101211,7.72245,2589.9,2589.5,2.3087]
[1724239101414,3.86115,2589.9,2589.5,2.8587]
[1724239101561,3.86133,2589.8,2589.7,2.4073]
[1724239102002,3.86133,2589.8,2589.7,4.39599037]
[1724239102584,7.72266,2589.8,2589.7,4.39599037]
[1724239102998,7.72266,2589.8,2589.7,2.71899037]
[1724239107409,3.86133,2589.8,2589.7,2.71899037]
[1724239107592,3.86133,2589.8,2589.7,3.28051373]
[1724239111719,3.86119,2589.9,2589.8,2.4665]
[1724239111887,3.861,2590.0,2589.8,4.02778366]
[1724239112085,3.861,2590.0,2589.8,3.47778366]
[1724239112798,7.72193,2590.1,2589.8,3.47778366]
[1724239113110,3.861,2590.0,2589.9,0.4039307]
[1724239113321,3.861,2590.0,2589.9,0.71453825]
[1724239114715,3.861,2590.0,2589.9,3.13333825]
[1724239118402,7.72192,2590.1,2590.0,2.3187]
[1724239118714,7.72192,2590.1,2590.0,2.85972383]
[1724239118916,7.72192,2590.1,2590.0,3.17029332]
[1724239119619,3.86096,2590.1,2590.0,3.17029332]
[1724239120910,7.72192,2590.1,2590.0,3.17029332]
[1724239122018,7.72192,2590.1,2590.0,0.31056949]
[1724239122517,3.86115,2589.9,2589.8,3.1257]
[1724239122720,3.86115,2589.9,2589.8,2.9757]
[1724239122869,3.86115,2589.9,2589.8,3.28622516]
[1724239124225,3.86115,2589.9,2589.8,3.78254768]
[1724239125315,3.86115,2589.9,2589.8,3.28622516]
[1724239131026,3.86102,2590.0,2589.8,4.96322516]
[1724239131211,3.86102,2590.0,2589.9,2.2777]
[1724239131596,3.86102,2590.0,2589.9,2.58818709]
[1724239131798,3.86102,2590.0,2589.9,3.0697058]
[1724239132478,3.86102,2590.0,2589.9,2.58818709]
[1724239134280,7.72209,2590.0,2589.9,0.31048709]
[1724239137514,15.65436,2590.0,2589.9,0.31048709]
[1724239137955,3.86174,2589.5,2589.4,0.7]
[1724239138263,3.86174,2589.5,2589.4,1.01074833]
[1724239138913,3.86165,2589.6,2589.4,3.90464833]
[1724239139114,3.86148,2589.7,2589.5,2.78516483]
[1724239139466,3.86131,2589.8,2589.7,0.7]
[1724239139619,3.86131,2589.8,2589.7,1.25]
[1724239139809,3.86131,2589.8,2589.7,1.5606341]
[1724239141255,3.86131,2589.8,2589.7,2.00738399]
[1724239141829,3.86131,2589.8,2589.7,4.35628399]
[1724239142170,3.86131,2589.8,2589.7,5.69893872]
[1724239143339,3.86131,2589.8,2589.7,7.71310615]
[1724239143655,3.86131,2589.8,2589.7,5.69893872]
[1724239144350,3.86131,2589.8,2589.7,7.71310615]
[1724239144949,3.86131,2589.8,2589.7,3.35003872]
[1724239145483,3.86131,2589.8,2589.7,5.36415544]
[1724239145841,7.72262,2589.8,2589.7,0.3106341]
[1724239146352,3.86145,2589.7,2589.5,0.80691764]
[1724239146552,7.7232,2589.6,2589.5,0.80691764]
[1724239146751,3.86145,2589.7,2589.1,5.15066537]
[1724239146752,3.86189,2589.4,2589.2,3.89620553]
[1724239147083,3.86189,2589.4,2589.3,4.16764056]
[1724239147440,3.86189,2589.4,2589.3,3.35735996]
[1724239148635,3.86189,2589.4,2589.3,4.16764056]
[1724239149780,3.86189,2589.4,2589.3,3.35735996]
[1724239150195,7.72378,2589.4,2589.3,3.35735996]
[1724239150522,7.72378,2589.4,2589.3,1.34294398]
[1724239150811,3.86204,2589.3,2589.2,2.01454035]
[1724239151009,3.86204,2589.3,2589.2,3.35756856]
[1724239151220,3.86189,2589.4,2589.2,6.04372112]
[1724239151427,3.86189,2589.4,2589.3,3.35756856]
[1724239152579,3.86189,2589.4,2589.3,1.34302821]
[1724239153232,3.86207,2589.3,2589.1,3.1872806]
[1724239153521,3.86207,2589.3,2589.2,3.90745985]
[1724239156886,3.86207,2589.3,2589.2,3.90746735]
[1724239157080,7.72414,2589.3,2589.2,1.89298694]
[1724239157378,7.72414,2589.3,2589.2,1.89301867]
[1724239157785,7.72414,2589.3,2589.2,0.55]
[1724239159134,7.72414,2589.3,2589.2,1.89301868]
[1724239159298,7.72414,2589.3,2589.2,0.55]
[1724239159884,7.72438,2589.2,2589.1,0.7]
[1724239160189,7.72438,2589.2,2589.1,2.04306644]
[1724239160614,7.72438,2589.2,2589.1,0.7]
[1724239160982,7.72438,2589.2,2589.1,2.04306385]
[1724239161489,7.72438,2589.2,2589.1,0.97018583]
[1724239161883,10.10418,2589.2,2589.1,0.97018583]
[1724239162308,7.72438,2589.2,2589.1,0.97018583]
[1724239163600,7.72438,2589.2,2589.1,0.27018583]
[1724239164121,3.86279,2588.8,2588.6,2.82488337]
[1724239164282,3.86309,2588.6,2588.5,2.71460277]
[1724239164486,3.86309,2588.6,2588.5,3.75490424]
[1724239165920,3.86309,2588.6,2588.5,4.30490424]
[1724239166432,3.86309,2588.6,2588.5,4.30494537]
[1724239167717,3.86309,2588.6,2588.5,4.30493708]
[1724239167923,3.86309,2588.6,2588.5,2.59329819]
[1724239168295,3.86309,2588.6,2588.5,0.7]
[1724239168592,3.86309,2588.6,2588.2,2.01494728]
[1724239168593,3.86353,2588.3,2588.2,2.01494728]
[1724239168813,3.86368,2588.2,2588.0,2.71494728]
[1724239169056,3.86383,2588.1,2588.0,0.7]
[1724239170353,3.86383,2588.1,2588.0,1.17195]
[1724239173020,3.86383,2588.1,2588.0,0.7]
[1724239174353,7.72766,2588.1,2588.0,0.7]
[1724239174762,2.4648,2588.2,2587.5,3.1967]
[1724239174929,3.8643,2587.8,2587.6,0.55]
[1724239175339,3.8643,2587.8,2587.6,0.92467]
[1724239176672,3.8643,2587.8,2587.7,0.26184509]
[1724239177456,3.8643,2587.8,2587.7,1.93884509]
[1724239180286,3.8643,2587.8,2587.7,0.26184509]
[1724239185194,10.01675,2587.8,2587.7,0.26184509]
[1724239185368,14.882775,2587.8,2587.7,0.26184509]
[1724239185539,3.86503,2587.3,2587.2,0.7]
[1724239185740,3.05867286,2587.3,2587.2,0.7]
[1724239185942,3.05867286,2587.3,2587.2,0.96371422]
[1724239186746,3.05867286,2587.3,2587.2,1.51371422]
[1724239186982,3.05867286,2587.3,2587.2,2.01080564]
[1724239188079,3.05867286,2587.3,2587.2,3.68780564]
[1724239188288,3.86478,2587.5,2587.2,3.68780564]
[1724239189161,3.86478,2587.5,2587.2,2.01080564]
[1724239189496,3.86451,2587.7,2587.5,2.9554]
[1724239189790,3.86451,2587.7,2587.6,2.14024]
[1724239189944,3.86451,2587.7,2587.6,2.40386516]
[1724239191864,7.72907,2587.7,2587.6,0.26362516]
[1724239192509,3.86473,2587.5,2587.4,1.677]
[1724239193971,7.72946,2587.5,2587.4,1.677]
[1724239195676,6.23311,2587.8,2587.2,4.10299142]
[1724239195973,3.86455,2587.7,2587.2,3.6059]
[1724239196726,3.86455,2587.7,2587.2,1.25]
[1724239196727,3.86503,2587.3,2587.2,1.25]
[1724239200552,7.73006,2587.3,2587.2,0.7]
[1724239205051,3.865,2587.4,2587.2,2.7147]
[1724239205255,3.865,2587.4,2587.3,2.4696]
[1724239206498,3.865,2587.4,2587.3,2.72523184]
[1724239208357,7.72995,2587.4,2587.3,0.25563184]
[1724239208780,3.86503,2587.3,2587.2,2.7147]
[1724239209002,3.86503,2587.3,2587.2,3.2647]
[1724239211624,3.86503,2587.3,2587.2,1.5877]
[1724239211791,3.86503,2587.3,2587.2,1.25]
[1724239214043,7.73006,2587.3,2587.2,0.7]
[1724239220554,7.73006,2587.3,2587.2,2.04407353]
[1724239220748,7.73006,2587.3,2587.2,2.04406372]
[1724239221269,7.73006,2587.3,2587.2,0.7]
[1724239221434,7.73006,2587.3,2587.2,0.95586666]
[1724239224839,7.73006,2587.3,2587.2,4.31599745]
[1724239225086,7.73006,2587.3,2587.2,4.92862526]
[1724239226726,7.73006,2587.3,2587.2,4.31599745]
[1724239226881,7.73006,2587.3,2587.2,2.2998787]
[1724239227081,7.73006,2587.3,2587.2,2.29992837]
[1724239227330,7.73006,2587.3,2587.2,4.31602079]
[1724239230433,7.73006,2587.3,2587.2,5.12630139]
[1724239231797,7.73006,2587.3,2587.2,5.12620092]
[1724239234821,7.73006,2587.3,2587.2,4.31592032]
[1724239235421,13.98629,2587.3,2587.2,3.61592032]
[1724239235641,13.98629,2587.3,2587.2,0.25586666]
[1724239237525,11.59554,2587.2,2587.1,6.66e-06]
[1724239237855,17.71202,2587.2,2587.1,6.66e-06]
[1724239238061,20.71202,2587.2,2587.1,6.66e-06]
[1724239238856,24.5772,2587.2,2587.1,6.66e-06]
[1724239239027,23.3263729,2587.2,2587.1,6.66e-06]
[1724239239226,27.1915529,2587.2,2587.1,6.66e-06]
[1724239240262,28.8685529,2587.2,2587.1,6.66e-06]
[1724239242845,27.1915529,2587.2,2587.1,6.66e-06]
[1724239246111,28.8685529,2587.2,2587.1,6.66e-06]
[1724239248507,25.0033729,2587.2,2587.1,6.66e-06]
[1724239255503,23.3263729,2587.2,2587.1,6.66e-06]
[1724239255795,25.0033729,2587.2,2587.1,6.66e-06]
[1724239256806,18.8868929,2587.2,2587.1,6.66e-06]
[1724239257008,11.59554,2587.2,2587.1,6.66e-06]
[1724239257240,7.73036,2587.2,2587.1,2.44890666]
[1724239258113,7.73036,2587.2,2587.1,2.70197376]
[1724239259745,3.86518,2587.2,2587.1,3.40197376]
[1724239259951,3.86518,2587.2,2587.1,3.90987114]
[1724239261539,3.86484,2587.5,2587.2,2.3124]
[1724239261732,3.86482,2587.5,2587.2,2.3124]
[1724239262044,3.86482,2587.5,2587.3,2.85743711]
[1724239262254,3.86482,2587.5,2587.4,2.3124]
[1724239262547,3.86482,2587.5,2587.4,2.56471836]
[1724239271725,7.72963,2587.5,2587.4,2.56471836]
[1724239271929,7.72963,2587.5,2587.4,2.3124]
[1724239272165,7.72963,2587.5,2587.4,2.59814371]
[1724239274857,7.72963,2587.5,2587.4,0.28574371]
[1724239275182,3.86497,2587.4,2587.2,2.4217]
[1724239275427,3.86497,2587.4,2587.3,0.55]
[1724239275701,3.86497,2587.4,2587.3,0.80235806]
[1724239275987,3.86497,2587.4,2587.3,0.55]
[1724239277180,7.73036,2587.2,2587.1,6.66e-06]
[1724239277634,7.73036,2587.2,2587.1,0.25231824]
[1724239277840,7.73036,2587.2,2587.1,6.66e-06]
[1724239278541,13.27254,2587.2,2587.1,6.66e-06]
[1724239278738,17.13772,2587.2,2587.1,6.66e-06]
[1724239279092,22.476823,2587.2,2587.1,6.66e-06]
[1724239279886,16.934643,2587.2,2587.1,6.66e-06]
[1724239280042,18.611643,2587.2,2587.1,6.66e-06]
[1724239284625,14.59554,2587.2,2587.1,6.66e-06]
[1724239285616,10.73036,2587.2,2587.1,6.66e-06]
[1724239286295,12.40736,2587.2,2587.1,6.66e-06]
[1724239287430,16.27254,2587.2,2587.1,6.66e-06]
[1724239287718,12.40736,2587.2,2587.1,6.66e-06]
[1724239287883,16.27254,2587.2,2587.1,6.66e-06]
[1724239289344,18.286307,2587.2,2587.1,6.66e-06]
[1724239289710,24.410387,2587.2,2587.1,6.66e-06]
[1724239293028,20.545207,2587.2,2587.1,6.66e-06]
[1724239293228,16.27254,2587.2,2587.1,6.66e-06]
[1724239303024,20.13772,2587.2,2587.1,6.66e-06]
[1724239303826,16.27254,2587.2,2587.1,6.66e-06]
[1724239305334,20.13772,2587.2,2587.1,6.66e-06]
[1724239305534,18.92156,2587.2,2587.1,6.66e-06]
[1724239306884,22.78674,2587.2,2587.1,6.66e-06]
[1724239308048,18.92156,2587.2,2587.1,6.66e-06]
[1724239308595,22.78674,2587.2,2587.1,6.66e-06]
[1724239310180,29.11492,2587.2,2587.1,6.66e-06]
[1724239311052,25.24974,2587.2,2587.1,6.66e-06]
[1724239312095,21.38456,2587.2,2587.1,6.66e-06]
[1724239312296,16.27254,2587.2,2587.1,6.66e-06]
[1724239313702,7.73036,2587.2,2587.1,2.42950666]
[1724239313903,3.86518,2587.2,2587.1,2.42950666]